fUSD/lending_fUSD_20240419
["ID","MTS","AMOUNT","RATE_DAILY","PERIOD"]
[322964524,1713547904692,-582.39,0.00015068,2]
[322964525,1713547904702,-500.0,0.00015068,2]
[322964526,1713547904711,-500.0,0.00015068,2]
[322964527,1713547904721,-500.0,0.00015068,2]
[322964528,1713547904731,-500.0,0.00015068,2]
[322964529,1713547904740,-826.91,0.00015068,2]
[322964530,1713547904749,-500.0,0.00015068,2]
[322964531,1713547904759,-3814.46,0.00015068,2]
[322964532,1713547904768,-520.61,0.00015068,2]
[322964533,1713547904777,-1444.61,0.00015068,2]
[322964534,1713547904787,-500.0,0.00015068,2]
[322964535,1713547904796,-545.09,0.00015068,2]
[322964536,1713547904806,-1239.67,0.00015068,2]
[322964537,1713547904815,-500.0,0.00015068,2]
[322964538,1713547904824,-500.0,0.00015068,2]
[322964539,1713547904834,-500.0,0.00015068,2]
[322964540,1713547904843,-500.0,0.00015068,2]
[322964541,1713547904852,-778.47,0.00015068,2]
[322964542,1713547904861,-562.43,0.00015068,2]
[322964543,1713547904870,-717.84,0.00015068,2]
[322964544,1713547904880,-500.0,0.00015068,2]
[322964545,1713547904889,-534.84,0.00015068,2]
[322964546,1713547904901,-500.0,0.00015068,2]
[322964547,1713547904911,-1476.82,0.00015068,2]
[322964548,1713547904921,-1833.64,0.00015068,2]
[322964549,1713547904931,-931.07,0.00015068,2]
[322964550,1713547904940,-1543.13,0.00015068,2]
[322964551,1713547904949,-514.51,0.00015068,2]
[322964552,1713547904958,-500.0,0.00015068,2]
[322964553,1713547904967,-924.5,0.00015068,2]
[322964554,1713547904977,-986.48,0.00015068,2]
[322964555,1713547904986,-3429.89,0.00015068,2]
[322964556,1713547904995,-381.1574202,0.00015068,2]
[322964557,1713547905005,-500.0,0.00015068,2]
[322964558,1713547905014,-502.53,0.00015068,2]
[322964559,1713547905024,-500.0,0.00015068,2]
[322964560,1713547905034,-1384.12,0.00015068,2]
[322964561,1713547905044,-1529.43,0.00015068,2]
[322964562,1713547905053,-713.45,0.00015068,2]
[322964563,1713547905062,-527.25,0.00015068,2]
[322964564,1713547905072,-500.0,0.00015068,2]
[322964565,1713547905082,-1481.71,0.00015068,2]
[322964566,1713547905091,-1823.94,0.00015068,2]
[322964567,1713547905100,-679.73,0.00015068,2]
[322964568,1713547905110,-500.0,0.00015068,2]
[322964569,1713547905119,-1763.78,0.00015068,2]
[322964570,1713547905128,-830.36,0.00015068,2]
[322964571,1713547905138,-500.0,0.00015068,2]
[322964572,1713547905147,-500.0,0.00015068,2]
[322964573,1713547905159,-4120.99,0.00015068,2]
[322964574,1713547905168,-500.0,0.00015068,2]
[322964575,1713547905178,-1450.48,0.00015068,2]
[322964576,1713547905187,-500.0,0.00015068,2]
[322964577,1713547905196,-500.0,0.00015068,2]
[322964578,1713547905205,-1589.95,0.00015068,2]
[322964579,1713547905214,-1251.26,0.00015068,2]
[322964580,1713547905223,-689.87,0.00015068,2]
[322964581,1713547905232,-655.83,0.00015068,2]
[322964582,1713547905241,-1698.86,0.00015068,2]
[322964583,1713547905250,-500.0,0.00015068,2]
[322964584,1713547905259,-1066.59,0.00015068,2]
[322964585,1713547905269,-3508.76,0.00015068,2]
[322964586,1713547905278,-1108.37,0.00015068,2]
[322964587,1713547905287,-1759.06,0.00015068,2]
[322964588,1713547905296,-671.87,0.00015068,2]
[322964589,1713547905305,-900.9,0.00015068,2]
[322964590,1713547905315,-919.21,0.00015068,2]
[322964591,1713547905326,-712.97,0.00015068,2]
[322964592,1713547905338,-710.37,0.00015068,2]
[322964593,1713547905348,-1505.91,0.00015068,2]
[322964594,1713547905357,-500.0,0.00015068,2]
[322964595,1713547905367,-500.0,0.00015068,2]
[322964596,1713547905376,-500.0,0.00015068,2]
[322964597,1713547905385,-2296.24,0.00015068,2]
[322964598,1713547905395,-824.87,0.00015068,2]
[322964599,1713547905407,-506.9,0.00015068,2]
[322964600,1713547905416,-500.0,0.00015068,2]
[322964601,1713547905426,-2853.29,0.00015068,2]
[322964602,1713547905435,-822.25,0.00015068,2]
[322964603,1713547905447,-537.9,0.00015068,2]
[322964604,1713547905457,-894.82,0.00015068,2]
[322964605,1713547905466,-563.06,0.00015068,2]
[322964606,1713547905475,-1134.71,0.00015068,2]
[322964607,1713547905486,-1499.52,0.00015068,2]
[322964608,1713547905495,-903.85,0.00015068,2]
[322964609,1713547905504,-500.0,0.00015068,2]
[322964610,1713547905514,-1557.7,0.00015068,2]
[322964611,1713547905525,-500.0,0.00015068,2]
[322964612,1713547905541,-786.62,0.00015068,2]
[322964613,1713547905550,-500.0,0.00015068,2]
[322964614,1713547905559,-500.0,0.00015068,2]
[322964615,1713547905569,-1546.59,0.00015068,2]
[322964616,1713547905578,-795.02,0.00015068,2]
[322964617,1713547905588,-630.22,0.00015068,2]
[322964618,1713547905597,-237.45572357,0.00015068,2]
[322964619,1713547905606,-500.0,0.00015068,2]
[322964620,1713547905622,-621.78,0.00015068,2]
[322964621,1713547905633,-1326.35,0.00015068,2]
[322964622,1713547905642,-334.77131245,0.00015068,2]
[322964623,1713547905653,-519.1,0.00015068,2]
[322964624,1713547905662,-764.79,0.00015068,2]
[322964625,1713547905672,-500.0,0.00015068,2]
[322964626,1713547905682,-500.0,0.00015068,2]
[322964627,1713547905692,-500.0,0.00015068,2]
[322964628,1713547905702,-2412.88,0.00015068,2]
[322964629,1713547905711,-1738.05,0.00015068,2]
[322964630,1713547905721,-636.42,0.00015068,2]
[322964631,1713547905731,-938.98,0.00015068,2]
[322964632,1713547905740,-545.94,0.00015068,2]
[322964633,1713547905750,-531.08,0.00015068,2]
[322964634,1713547905760,-500.0,0.00015068,2]
[322964635,1713547905769,-500.0,0.00015068,2]
[322964636,1713547905779,-2340.34,0.00015068,2]
[322964637,1713547905789,-833.04,0.00015068,2]
[322964638,1713547905798,-1053.89,0.00015068,2]
[322964639,1713547905808,-500.0,0.00015068,2]
[322964640,1713547905818,-855.66,0.00015068,2]
[322964641,1713547905828,-500.0,0.00015068,2]
[322964642,1713547905837,-955.48,0.00015068,2]
[322964643,1713547905846,-642.26,0.00015068,2]
[322964644,1713547905856,-841.68,0.00015068,2]
[322964645,1713547905866,-500.0,0.00015068,2]
[322964646,1713547905875,-5268.86,0.00015068,2]
[322964647,1713547905885,-879.59,0.00015068,2]
[322964648,1713547905895,-1343.94,0.00015068,2]
[322964649,1713547905905,-500.0,0.00015068,2]
[322964650,1713547905915,-4733.91,0.00015068,2]
[322964651,1713547905924,-1082.66,0.00015068,2]
[322964652,1713547905933,-500.0,0.00015068,2]
[322964653,1713547905942,-500.0,0.00015068,2]
[322964654,1713547905952,-500.0,0.00015068,2]
[322964655,1713547905961,-1090.92,0.00015068,2]
[322964656,1713547905971,-1759.6,0.00015068,2]
[322964657,1713547905980,-500.0,0.00015068,2]
[322964658,1713547905989,-742.94,0.00015068,2]
[322964659,1713547905998,-567.95,0.00015068,2]
[322964660,1713547906008,-500.0,0.00015068,2]
[322964661,1713547906018,-500.0,0.00015068,2]
[322964662,1713547906030,-622.47,0.00015068,2]
[322964663,1713547906040,-4863.74,0.00015068,2]
[322964664,1713547906049,-2946.36,0.00015068,2]
[322964665,1713547906060,-500.0,0.00015068,2]
[322964666,1713547906069,-865.24,0.00015068,2]
[322964667,1713547906078,-500.0,0.00015068,2]
[322964668,1713547906088,-1173.2,0.00015068,2]
[322964669,1713547906098,-705.94,0.00015068,2]
[322964670,1713547906107,-1040.86,0.00015068,2]
[322964671,1713547906118,-977.04,0.00015068,2]
[322964672,1713547906127,-500.0,0.00015068,2]
[322964673,1713547906139,-1709.0,0.00015068,2]
[322964674,1713547906152,-1225.48,0.00015068,2]
[322964675,1713547906162,-1647.32,0.00015068,2]
[322964676,1713547906171,-1418.14,0.00015068,2]
[322964677,1713547906181,-1311.75,0.00015068,2]
[322964678,1713547906190,-2658.56,0.00015068,2]
[322964679,1713547906200,-969.72,0.00015068,2]
[322964680,1713547906209,-500.0,0.00015068,2]
[322964681,1713547906220,-613.28466232,0.00015068,2]
[322964682,1713547906230,-6579.29,0.00015068,2]
[322964683,1713547906240,-500.0,0.00015068,2]
[322964684,1713547906250,-15195.99,0.00015068,2]
[322964685,1713547906261,-1735.44,0.00015068,2]
[322964686,1713547906270,-1421.48,0.00015068,2]
[322964687,1713547906280,-2819.15,0.00015068,2]
[322964688,1713547906291,-539.84,0.00015068,2]
[322964689,1713547906302,-3560.07,0.00015068,2]
[322964690,1713547906313,-755.96,0.00015068,2]
[322964691,1713547906322,-1491.97,0.00015068,2]
[322964692,1713547906331,-500.0,0.00015068,2]
[322964693,1713547906342,-11876.02,0.00015068,2]
[322964694,1713547906352,-500.0,0.00015068,2]
[322964695,1713547906362,-500.0,0.00015068,2]
[322964696,1713547906371,-765.25,0.00015068,2]
[322964697,1713547906380,-1279.81,0.00015068,2]
[322964698,1713547906389,-5736.72,0.00015068,2]
[322964699,1713547906399,-508.97,0.00015068,2]
[322964700,1713547906409,-1088.04,0.00015068,2]
[322964701,1713547906418,-629.73,0.00015068,2]
[322964702,1713547906427,-252.72941406,0.00015068,2]
[322964703,1713547906437,-6573.7,0.00015068,2]
[322964704,1713547906449,-45218.75,0.00015068,2]
[322964705,1713547906458,-500.0,0.00015068,2]
[322964706,1713547906471,-500.0,0.00015068,2]
[322964707,1713547906481,-5396.18,0.00015068,2]
[322964708,1713547906491,-685.5,0.00015068,2]
[322964709,1713547906501,-500.0,0.00015068,2]
[322964710,1713547906511,-52964.1,0.00015068,2]
[322964711,1713547906522,-558.14,0.00015068,2]
[322964712,1713547906531,-1025.75,0.00015068,2]
[322964713,1713547906541,-681.73,0.00015068,2]
[322964714,1713547906550,-2662.99,0.00015068,2]
[322964715,1713547906560,-500.0,0.00015068,2]
[322964716,1713547906569,-2204.22,0.00015068,2]
[322964717,1713547906578,-5965.37,0.00015068,2]
[322964718,1713547906588,-3247.07,0.00015068,2]
[322964719,1713547906597,-500.0,0.00015068,2]
[322964720,1713547906607,-12227.84,0.00015068,2]
[322964721,1713547906617,-674.06,0.00015068,2]
[322964722,1713547906626,-500.0,0.00015068,2]
[322964723,1713547906636,-4761.03,0.00015068,2]
[322964724,1713547906646,-4123.91,0.00015068,2]
[322964725,1713547906657,-3343.38,0.00015068,2]
[322964726,1713547906667,-1367.3,0.00015068,2]
[322964727,1713547906677,-741.07,0.00015068,2]
[322964728,1713547906686,-757.02,0.00015068,2]
[322964729,1713547906695,-1610.38,0.00015068,2]
[322964730,1713547906705,-367.17270679,0.00015068,2]
[322964731,1713547906715,-500.0,0.00015068,2]
[322964732,1713547906725,-5484.98,0.00015068,2]
[322964733,1713547906735,-3916.21,0.00015068,2]
[322964734,1713547906744,-500.0,0.00015068,2]
[322964735,1713547906753,-928.0,0.00015068,2]
[322964736,1713547906765,-6276.92,0.00015068,2]
[322964737,1713547906774,-500.0,0.00015068,2]
[322964738,1713547906783,-588.77,0.00015068,2]
[322964739,1713547906793,-500.0,0.00015068,2]
[322964740,1713547906802,-2018.33,0.00015068,2]
[322964741,1713547906812,-3262.35,0.00015068,2]
[322964742,1713547906822,-615.68,0.00015068,2]
[322964743,1713547906831,-585.61,0.00015068,2]
[322964744,1713547906841,-711.84,0.00015068,2]
[322964745,1713547906850,-6581.21,0.00015068,2]
[322964746,1713547906860,-2216.57,0.00015068,2]
[322964747,1713547906869,-3455.3,0.00015068,2]
[322964748,1713547906878,-1041.22,0.00015068,2]
[322964749,1713547906888,-11383.33,0.00015068,2]
[322964750,1713547906899,-500.0,0.00015068,2]
[322964751,1713547906909,-500.0,0.00015068,2]
[322964752,1713547906919,-4221.78,0.00015068,2]
[322964753,1713547906929,-500.0,0.00015068,2]
[322964754,1713547906938,-510.55,0.00015068,2]
[322964755,1713547906947,-2544.65,0.00015068,2]
[322964756,1713547906957,-5227.38,0.00015068,2]
[322964757,1713547906966,-1412.66,0.00015068,2]
[322964758,1713547906975,-500.0,0.00015068,2]
[322964759,1713547906985,-500.34,0.00015068,2]
[322964760,1713547906994,-1381.75,0.00015068,2]
[322964761,1713547907003,-500.0,0.00015068,2]
[322964762,1713547907013,-500.0,0.00015068,2]
[322964763,1713547907022,-1200.91,0.00015068,2]
[322964764,1713547907032,-1955.31,0.00015068,2]
[322964765,1713547907041,-1841.57,0.00015068,2]
[322964766,1713547907051,-2222.35,0.00015068,2]
[322964767,1713547907061,-725.96,0.00015068,2]
[322964768,1713547907070,-34683.45,0.00015068,2]
[322964769,1713547907080,-3026.62,0.00015068,2]
[322964770,1713547907089,-574.27156959,0.00015068,2]
[322964771,1713547907099,-500.0,0.00015068,2]
[322964772,1713547907108,-1352.02,0.00015068,2]
[322964773,1713547907118,-154.53055415,0.00015068,2]
[322964774,1713547907128,-1187.41,0.00015068,2]
[322964775,1713547907137,-2477.82,0.00015068,2]
[322964776,1713547907147,-48949.39,0.00015068,2]
[322964777,1713547907160,-838.58,0.00015068,2]
[322964778,1713547907170,-500.0,0.00015068,2]
[322964779,1713547907180,-500.0,0.00015068,2]
[322964780,1713547907190,-2826.35,0.00015068,2]
[322964781,1713547907201,-1497.49,0.00015068,2]
[322964782,1713547907212,-4102.58,0.00015068,2]
[322964783,1713547907223,-500.0,0.00015068,2]
[322964784,1713547907233,-6421.67,0.00015068,2]
[322964785,1713547907243,-575.23,0.00015068,2]
[322964786,1713547907252,-1636.84,0.00015068,2]
[322964787,1713547907262,-500.0,0.00015068,2]
[322964788,1713547907271,-665.25,0.00015068,2]
[322964789,1713547907281,-1692.21,0.00015068,2]
[322964790,1713547907291,-890.38,0.00015068,2]
[322964791,1713547907300,-910.31,0.00015068,2]
[322964792,1713547907311,-500.0,0.00015068,2]
[322964793,1713547907321,-500.0,0.00015068,2]
[322964794,1713547907331,-11912.4,0.00015068,2]
[322964795,1713547907340,-1407.06,0.00015068,2]
[322964796,1713547907350,-500.0,0.00015068,2]
[322964797,1713547907362,-3819.63,0.00015068,2]
[322964798,1713547907371,-1156.25,0.00015068,2]
[322964799,1713547907382,-1218.69,0.00015068,2]
[322964800,1713547907391,-618.87,0.00015068,2]
[322964801,1713547907404,-9676.28,0.00015068,2]
[322964802,1713547907414,-3329.81,0.00015068,2]
[322964803,1713547907424,-500.0,0.00015068,2]
[322964804,1713547907434,-500.0,0.00015068,2]
[322964805,1713547907447,-810.65,0.00015068,2]
[322964806,1713547907458,-2283.33,0.00015068,2]
[322964807,1713547907468,-1446.72,0.00015068,2]
[322964808,1713547907478,-503.4,0.00015068,2]
[322964809,1713547907487,-4544.04,0.00015068,2]
[322964810,1713547907497,-4158.65,0.00015068,2]
[322964811,1713547907506,-553.47,0.00015068,2]
[322964812,1713547907516,-1380.73,0.00015068,2]
[322964813,1713547907529,-500.0,0.00015068,2]
[322964814,1713547907539,-2200.13,0.00015068,2]
[322964815,1713547907550,-500.0,0.00015068,2]
[322964816,1713547907563,-5560.86,0.00015068,2]
[322964817,1713547907573,-423.29420176,0.00015068,2]
[322964818,1713547907583,-1355.17,0.00015068,2]
[322964819,1713547907592,-500.0,0.00015068,2]
[322964820,1713547907602,-563.91,0.00015068,2]
[322964821,1713547907611,-4919.23,0.00015068,2]
[322964822,1713547907620,-1002.43,0.00015068,2]
[322964823,1713547907630,-3973.79,0.00015068,2]
[322964824,1713547907639,-1060.49,0.00015068,2]
[322964825,1713547907651,-579.36,0.00015068,2]
[322964826,1713547907660,-763.03,0.00015068,2]
[322964827,1713547907669,-552.75,0.00015068,2]
[322964828,1713547907678,-4595.55,0.00015068,2]
[322964829,1713547907687,-2855.28,0.00015068,2]
[322964830,1713547907696,-500.0,0.00015068,2]
[322964831,1713547907707,-783.48,0.00015068,2]
[322964832,1713547907716,-1158.83,0.00015068,2]
[322964833,1713547907727,-500.0,0.00015068,2]
[322964834,1713547907737,-6542.37,0.00015068,2]
[322964835,1713547907746,-881.51,0.00015068,2]
[322964836,1713547907757,-883.28,0.00015068,2]
[322964837,1713547907766,-500.0,0.00015068,2]
[322964838,1713547907775,-594.1,0.00015068,2]
[322964839,1713547907784,-1421.77,0.00015068,2]
[322964840,1713547907793,-500.0,0.00015068,2]
[322964841,1713547907802,-981.0,0.00015068,2]
[322964842,1713547907812,-6206.7,0.00015068,2]
[322964843,1713547907821,-1052.1,0.00015068,2]
[322964844,1713547907830,-1538.61,0.00015068,2]
[322964845,1713547907839,-4085.8,0.00015068,2]
[322964846,1713547907848,-4062.96,0.00015068,2]
[322964847,1713547907857,-500.0,0.00015068,2]
[322964848,1713547907867,-1948.78,0.00015068,2]
[322964849,1713547907876,-500.0,0.00015068,2]
[322964850,1713547907886,-500.0,0.00015068,2]
[322964851,1713547907895,-17497.97,0.00015068,2]
[322964852,1713547907906,-1007.95,0.00015068,2]
[322964853,1713547907915,-4425.62,0.00015068,2]
[322964854,1713547907926,-2639.01,0.00015068,2]
[322964855,1713547907935,-500.79,0.00015068,2]
[322964856,1713547907944,-861.47,0.00015068,2]
[322964857,1713547907954,-500.0,0.00015068,2]
[322964858,1713547907964,-1492.61,0.00015068,2]
[322964859,1713547907973,-2352.54,0.00015068,2]
[322964860,1713547907983,-500.0,0.00015068,2]
[322964861,1713547907992,-742.07,0.00015068,2]
[322964862,1713547908002,-500.0,0.00015068,2]
[322964863,1713547908012,-2108.24,0.00015068,2]
[322964864,1713547908022,-1292.25,0.00015068,2]
[322964865,1713547908032,-3161.42,0.00015068,2]
[322964866,1713547908042,-4352.24,0.00015068,2]
[322964867,1713547908052,-685.18,0.00015068,2]
[322964868,1713547908063,-654.56,0.00015068,2]
[322964869,1713547908072,-2475.19,0.00015068,2]
[322964870,1713547908081,-527.43,0.00015068,2]
[322964871,1713547908090,-811.56,0.00015068,2]
[322964872,1713547908099,-1931.25,0.00015068,2]
[322964873,1713547908109,-3289.05,0.00015068,2]
[322964874,1713547908118,-2186.22,0.00015068,2]
[322964875,1713547908128,-500.0,0.00015068,2]
[322964876,1713547908138,-2127.86,0.00015068,2]
[322964877,1713547908147,-500.0,0.00015068,2]
[322964878,1713547908158,-500.0,0.00015068,2]
[322964879,1713547908168,-634.17,0.00015068,2]
[322964880,1713547908177,-1946.84,0.00015068,2]
[322964881,1713547908186,-530.4,0.00015068,2]
[322964882,1713547908195,-3103.16,0.00015068,2]
[322964883,1713547908204,-579.92,0.00015068,2]
[322964884,1713547908214,-6085.95,0.00015068,2]
[322964885,1713547908223,-500.0,0.00015068,2]
[322964886,1713547908232,-500.0,0.00015068,2]
[322964887,1713547908241,-7088.93,0.00015068,2]
[322964888,1713547908250,-5419.22,0.00015068,2]
[322964889,1713547908259,-4287.56,0.00015068,2]
[322964890,1713547908268,-1208.62,0.00015068,2]
[322964891,1713547908277,-929.94,0.00015068,2]
[322964892,1713547908286,-1855.49,0.00015068,2]
[322964893,1713547908295,-2058.59,0.00015068,2]
[322964894,1713547908304,-645.16,0.00015068,2]
[322964895,1713547908314,-500.0,0.00015068,2]
[322964896,1713547908323,-1101.99,0.00015068,2]
[322964897,1713547908332,-4357.62,0.00015068,2]
[322964898,1713547908341,-1709.63,0.00015068,2]
[322964899,1713547908350,-2921.52,0.00015068,2]
[322964900,1713547908359,-3605.39,0.00015068,2]
[322964901,1713547908368,-2913.82,0.00015068,2]
[322964902,1713547908377,-2284.23,0.00015068,2]
[322964903,1713547908386,-3148.21,0.00015068,2]
[322964904,1713547908396,-3089.2,0.00015068,2]
[322964905,1713547908407,-887.62,0.00015068,2]
[322964906,1713547908416,-8483.21,0.00015068,2]
[322964907,1713547908425,-1335.04,0.00015068,2]
[322964908,1713547908435,-10199.48,0.00015068,2]
[322964909,1713547908445,-500.0,0.00015068,2]
[322964910,1713547908455,-2491.95,0.00015068,2]
[322964911,1713547908465,-2270.49,0.00015068,2]
[322964912,1713547908474,-906.26,0.00015068,2]
[322964913,1713547908485,-500.0,0.00015068,2]
[322964914,1713547908494,-1698.74,0.00015068,2]
[322964915,1713547908504,-500.0,0.00015068,2]
[322964916,1713547908513,-500.0,0.00015068,2]
[322964917,1713547908523,-500.0,0.00015068,2]
[322964918,1713547908532,-811.94,0.00015068,2]
[322964919,1713547908541,-2166.43,0.00015068,2]
[322964920,1713547908551,-500.0,0.00015068,2]
[322964921,1713547908560,-2680.87,0.00015068,2]
[322964922,1713547908569,-5021.77,0.00015068,2]
[322964923,1713547908578,-500.0,0.00015068,2]
[322964924,1713547908722,-3326.38,0.00015068,2]
[322964925,1713547908738,-7308.28,0.00015068,2]
[322964926,1713547908747,-3575.85,0.00015068,2]
[322964927,1713547908756,-500.0,0.00015068,2]
[322964928,1713547908765,-500.0,0.00015068,2]
[322964929,1713547908774,-500.0,0.00015068,2]
[322964930,1713547908784,-866.36,0.00015068,2]
[322964931,1713547908794,-5687.27,0.00015068,2]
[322964932,1713547908803,-3274.38,0.00015068,2]
[322964933,1713547908813,-2569.93,0.00015068,2]
[322964934,1713547908823,-3955.01,0.00015068,2]
[322964935,1713547908832,-566.94,0.00015068,2]
[322964936,1713547908842,-2170.26,0.00015068,2]
[322964937,1713547908852,-500.0,0.00015068,2]
[322964938,1713547908861,-926.38,0.00015068,2]
[322964939,1713547908870,-531.64,0.00015068,2]
[322964940,1713547908880,-2771.27,0.00015068,2]
[322964941,1713547908889,-3429.85,0.00015068,2]
[322964942,1713547908899,-811.58,0.00015068,2]
[322964943,1713547908909,-500.0,0.00015068,2]
[322964944,1713547908918,-4169.76,0.00015068,2]
[322964945,1713547908927,-500.0,0.00015068,2]
[322964946,1713547908937,-1171.56,0.00015068,2]
[322964947,1713547908946,-7301.02,0.00015068,2]
[322964948,1713547908955,-740.92,0.00015068,2]
[322964949,1713547908964,-5217.82,0.00015068,2]
[322964950,1713547908974,-1673.96,0.00015068,2]
[322964951,1713547908984,-500.0,0.00015068,2]
[322964952,1713547908993,-500.0,0.00015068,2]
[322964953,1713547909003,-640.68,0.00015068,2]
[322964954,1713547909013,-3617.11,0.00015068,2]
[322964955,1713547909022,-2057.12,0.00015068,2]
[322964956,1713547909032,-602.39555249,0.00015068,2]
[322964957,1713547909042,-500.0,0.00015068,2]
[322964958,1713547909051,-4923.85,0.00015068,2]
[322964959,1713547909062,-500.0,0.00015068,2]
[322964960,1713547909072,-1801.44,0.00015068,2]
[322964961,1713547909081,-4779.03,0.00015068,2]
[322964962,1713547909091,-1954.87,0.00015068,2]
[322964963,1713547909101,-1554.88,0.00015068,2]
[322964964,1713547909110,-1770.16,0.00015068,2]
[322964965,1713547909120,-638.45,0.00015068,2]
[322964966,1713547909129,-500.0,0.00015068,2]
[322964967,1713547909139,-2684.17,0.00015068,2]
[322964968,1713547909149,-746.73,0.00015068,2]
[322964969,1713547909159,-500.0,0.00015068,2]
[322964970,1713547909169,-678.26,0.00015068,2]
[322964971,1713547909178,-512.19,0.00015068,2]
[322964972,1713547909187,-500.0,0.00015068,2]
[322964973,1713547909197,-1504.54,0.00015068,2]
[322964974,1713547909206,-3655.54,0.00015068,2]
[322964975,1713547909215,-8067.16,0.00015068,2]
[322964976,1713547909225,-1114.62,0.00015068,2]
[322964977,1713547909234,-2012.53,0.00015068,2]
[322964978,1713547909244,-558.22,0.00015068,2]
[322964979,1713547909253,-1607.78,0.00015068,2]
[322964980,1713547909263,-1500.58,0.00015068,2]
[322964981,1713547909273,-500.0,0.00015068,2]
[322964982,1713547909282,-500.0,0.00015068,2]
[322964983,1713547909291,-3418.9,0.00015068,2]
[322964984,1713547909301,-500.0,0.00015068,2]
[322964985,1713547909310,-500.0,0.00015068,2]
[322964986,1713547909320,-500.0,0.00015068,2]
[322964987,1713547909330,-1792.81,0.00015068,2]
[322964988,1713547909339,-500.0,0.00015068,2]
[322964989,1713547909349,-1114.52,0.00015068,2]
[322964990,1713547909358,-2342.52,0.00015068,2]
[322964991,1713547909367,-27431.3,0.00015068,2]
[322964992,1713547909376,-532.06,0.00015068,2]
[322964993,1713547909386,-685.87,0.00015068,2]
[322964994,1713547909395,-500.0,0.00015068,2]
[322964995,1713547909405,-5407.88,0.00015068,2]
[322964996,1713547909414,-8673.57,0.00015068,2]
[322964997,1713547909424,-3071.89,0.00015068,2]
[322964998,1713547909434,-974.72,0.00015068,2]
[322964999,1713547909446,-1450.35,0.00015068,2]
[322965000,1713547909455,-500.0,0.00015068,2]
[322965001,1713547909464,-1683.58,0.00015068,2]
[322965002,1713547909474,-500.0,0.00015068,2]
[322965003,1713547909484,-590.97,0.00015068,2]
[322965004,1713547909494,-500.0,0.00015068,2]
[322965005,1713547909503,-500.0,0.00015068,2]
[322965006,1713547909513,-500.0,0.00015068,2]
[322965007,1713547909523,-4332.15,0.00015068,2]
[322965008,1713547909533,-639.7,0.00015068,2]
[322965009,1713547909542,-1237.51,0.00015068,2]
[322965010,1713547909552,-1182.46,0.00015068,2]
[322965011,1713547909562,-2597.97,0.00015068,2]
[322965012,1713547909571,-3651.9,0.00015068,2]
[322965013,1713547909581,-15683.86,0.00015068,2]
[322965014,1713547909591,-2382.29,0.00015068,2]
[322965015,1713547909601,-7128.78,0.00015068,2]
[322965016,1713547909611,-500.0,0.00015068,2]
[322965017,1713547909620,-500.0,0.00015068,2]
[322965018,1713547909630,-500.44,0.00015068,2]
[322965019,1713547909640,-906.78,0.00015068,2]
[322965020,1713547909653,-936.01,0.00015068,2]
[322965021,1713547909663,-894.61,0.00015068,2]
[322965022,1713547909673,-3390.69,0.00015068,2]
[322965023,1713547909682,-500.0,0.00015068,2]